[Event "1st Kallai Gabor Memorial Blitz 2022"]
[Site "Budapest"]
[Date "2022.12.01"]
[Round "7.5"]
[White "Bjerre, Jonas Buhl"]
[Black "Gaal, Zsoka"]
[Result "1-0"]
[ECO "B04"]
[WhiteElo "2622"]
[BlackElo "2286"]
[Annotator "TA"]
[PlyCount "65"]
[EventDate "2022.12.01"]
[EventType "blitz"]
[EventCountry "HUN"]
[SourceTitle "playchess.com"]
[Source "ChessBase"]
[SourceQuality "1"]
[TimeControl "300+3"]

{[%evp 16,65,57,39,50,46,54,38,79,75,83,70,77,77,87,65,112,119,104,21,33,33,125,119,124,159,97,118,111,85,463,475,467,472,472,478,466,466,812,789,784,774,846,839,1189,1187,1503,1448,2981,1503,1442,1390]} 1. e4 {[%emt 0:00:14][%cal Be2e4,Be4e5][%mdl 32]} Nf6 {[%emt 0:00:04]} 2. e5 {[%emt 0:00:03]} Nd5 {[%emt 0:00:01]} 3. d4 {[%emt 0:00:02]} d6 {[%emt 0:00:01]} 4. Nf3 {[%emt 0:00:02]} g6 {[%emt 0:00:02]} 5. Bc4 {[%emt 0:00:18]} c6 {[%emt 0:00:05]} 6. O-O {[%emt 0:00:09]} Bg7 {[%emt 0:00:01]} 7. exd6 {[%emt 0:00:04]} Qxd6 {[%emt 0:00:06]} 8. h3 {[%emt 0:00:02]} O-O {[%emt 0:00:02]} 9. Re1 {[%emt 0:00:06]} Nd7 {[%emt 0:00:38] B04: Alekhine's Defence: 4 Nf3.} 10. Bg5 $5 {[%cal Bc1g5,Bg5h4,Bh4g3][%mdl 4] [#] A promising side line.} N7f6 $146 {[%emt 0:00:16]} ({Predecessor:} 10... e6 11. Nbd2 b5 12. Bf1 c5 13. c4 bxc4 14. Nxc4 Qc7 15. Rc1 Bb7 16. Bh4 cxd4 17. Bg3 {1-0 (62) Narayanan,S (2618)-Xiong,J (2709) Chess.com INT 2021}) 11. Nbd2 {[%emt 0:00:15]} h6 {[%emt 0:00:09] [#] White is slightly better.} 12. Bh4 {[%emt 0:00:04]} Bf5 {[%emt 0:00:35]} 13. Bg3 {[%emt 0:00:06]} Qd8 {[%emt 0:00:06]} 14. Bb3 {[%emt 0:00:14]} b5 {[%emt 0:00:06]} 15. Ne5 {[%emt 0:00:17]} Qb6 {[%emt 0:00:04]} (15... e6 $14) 16. c4 $16 Nb4 {[%emt 0:00:38]} 17. Qf3 {[%emt 0:00:32]} (17. Qe2 $16) 17... Qxd4 $11 {[%emt 0:00:31]} 18. Rad1 {[%emt 0:00:05] Strongly threatening cxb5.} Qxb2 {[%emt 0:00:06]} ({Black should play} 18... Rac8 $14) 19. cxb5 $16 {Hoping for Ndc4.} (19. Nxc6 $6 Nxc6 20. Qxc6 Rfc8 21. Qxb5 Nh5 $11) 19... Nc2 {[#]} 20. Ndc4 $1 {[%emt 0:01:40]} Nxe1 {[%emt 0:00:53]} 21. Rxe1 {[%emt 0:00:01]} Qd4 {[%emt 0:00:08]} 22. Nxc6 {[%emt 0:00:03][%mdl 64] Discovered Attack, Double Attack} (22. Qxc6 Rac8 23. Qb7 Nh5 $17) 22... Qc5 {[%emt 0:00:08][%mdl 8192] Black cannot hold the game after this.} (22... Qd3 $16) 23. Re5 $18 {[%emt 0:00:31][%cal Be1e5,Be5c5,Bc5c7,Bc7a7][%mdl 96] Trapped Piece. White is clearly winning.} ({Not} 23. Rxe7 Be6 $16) (23. Nxe7+ Kh8 24. Nd6 Kh7 25. Nexf5 (25. Nxf7 Qb4 $18) 25... gxf5 $18) 23... Be4 {[%emt 0:00:51] And now ...Qxe5 would win.} 24. Rxc5 {[%emt 0:00:18]} Bxf3 {[%emt 0:00:01]} 25. Nxe7+ {[%emt 0:00:08] Pair of Knights!} ({Less strong is} 25. gxf3 Rfe8 26. a4 Bf8 $18) 25... Kh7 {[%emt 0:00:03]} 26. gxf3 {[%emt 0:00:02]} Rfe8 {[%emt 0:00:32]} (26... Rfd8 $142 27. Nc6 Bf8 28. Nxd8 Bxc5 29. Nxf7 Nd7) 27. Rc7 {[%emt 0:00:02]} Nh5 {[%emt 0:00:05]} 28. Bd6 {[%emt 0:00:27]} Rad8 {[%emt 0:00:07]} 29. Rxa7 Bd4 {[%emt 0:00:01]} 30. Rc7 {[%emt 0:00:32]} Nf6 {[%emt 0:00:06]} 31. Nc6 {[%emt 0:00:01][%csl LRd4,LRd8,LRf7]} Rc8 {[%emt 0:00:05]} 32. Rxc8 {[%emt 0:00:02]} Rxc8 33. Nxd4 {[%emt 0:00:01] Weighted Error Value: White=0.12 (very precise) /Black=0.46} 1-0

[Event "1st Kallai Gabor Memorial Blitz 2022"]
[Site "Budapest"]
[Date "2022.12.01"]
[Round "8.1"]
[White "Kozak, Adam"]
[Black "Motylev, Alexander"]
[Result "1/2-1/2"]
[ECO "D45"]
[WhiteElo "2538"]
[BlackElo "2628"]
[Annotator "TA"]
[PlyCount "33"]
[EventDate "2022.12.01"]
[EventType "blitz"]
[EventCountry "HUN"]
[SourceTitle "playchess.com"]
[Source "ChessBase"]
[SourceQuality "1"]
[TimeControl "300+3"]

{[%evp 20,33,0,0,13,0,12,6,0,0,16,0,10,0,8,-14]} 1. d4 {[%emt 0:00:06]} d5 {[%emt 0:00:07]} 2. c4 {[%emt 0:00:01]} c6 {[%emt 0:00:01]} 3. Nc3 {[%emt 0:00:35]} Nf6 {[%emt 0:00:01]} 4. e3 {[%emt 0:00:02]} e6 {[%emt 0:00:01]} 5. Nf3 {[%emt 0:00:02]} Nbd7 {[%emt 0:00:01]} 6. Qc2 {[%emt 0:00:02]} Bd6 {[%emt 0:00:01]} 7. b3 {[%emt 0:00:12]} O-O {[%emt 0:00:02]} 8. Be2 {[%emt 0:00:10]} b6 {[%emt 0:00:01]} 9. O-O {[%emt 0:00:07]} Bb7 {[%emt 0:00:01]} 10. Bb2 {[%emt 0:00:03]} Re8 {[%emt 0:00:01]} 11. Rad1 {[%emt 0:00:21] The position is equal.} Qc7 {[%emt 0:00:01] D45: Semi-Slav: 5 e3.} 12. cxd5 {[%emt 0:00:38] [#]} cxd5 $146 {[%emt 0:00:11]} ({Predecessor:} 12... exd5 13. Bd3 Re7 14. h3 Rae8 15. Nd2 Nf8 16. Qc1 b5 17. Rfe1 Ng6 18. Qb1 Qa5 19. e4 {0-1 (31) Davtyan,A (2488)-Tabatabaei,M (2645) Sharjah 2022}) 13. Qb1 {[%emt 0:00:21]} a6 {[%emt 0:00:28]} 14. Rc1 {[%emt 0:00:25][%cal Oc3d5]} Qb8 {[%emt 0:00:04]} 15. g3 {[%emt 0:00:08]} b5 {[%emt 0:00:38]} 16. Rfd1 {[%emt 0:00:12]} Ra7 {[%emt 0:00:07]} 17. Bf1 {[%emt 0:00:48] Not much happened in this game.   Weighted Error Value: White=0.06 (flawless) /Black=0.09 (flawless)} 1/2-1/2

[Event "1st Kallai Gabor Memorial Blitz 2022"]
[Site "Budapest"]
[Date "2022.12.01"]
[Round "8.2"]
[White "Beliavsky, Alexander G"]
[Black "Bjerre, Jonas Buhl"]
[Result "0-1"]
[ECO "D37"]
[WhiteElo "2487"]
[BlackElo "2622"]
[Annotator "TA"]
[PlyCount "68"]
[EventDate "2022.12.01"]
[EventType "blitz"]
[EventCountry "HUN"]
[SourceTitle "playchess.com"]
[Source "ChessBase"]
[SourceQuality "1"]
[TimeControl "300+3"]

{[%evp 9,68,25,58,50,37,43,43,40,49,46,49,10,7,-10,-8,-43,0,-66,-52,-77,-90,-102,13,2,19,12,19,12,14,-15,-15,-29,-33,-31,-13,-28,-28,-38,-37,-52,-49,-85,-91,-158,-171,-254,-111,-111,-111,-103,-89,-200,-89,-261,-127,-130,-109,-29994,-29993,-29993,-29979]} 1. d4 {[%emt 0:00:04]} Nf6 {[%emt 0:00:04]} 2. c4 {[%emt 0:00:01]} e6 {[%emt 0:00:01]} 3. Nf3 {[%emt 0:00:02]} d5 {[%emt 0:00:02]} 4. Nc3 {[%emt 0:00:06]} dxc4 {[%emt 0:00:03]} 5. e4 {[%emt 0:00:11][%cal Be2e4,Be4e5][%mdl 32]} b5 {[%emt 0:00:01]} 6. e5 {[%emt 0:00:07] Inhibits a6. D24: Queen's Gambit Accepted: 3 Nf3 Nf6 4 Nc3.} Nd5 {[%emt 0:00:02]} 7. Nxb5 {[%emt 0:00:02]} Nb6 {[%emt 0:00:01]} 8. Be2 {[%emt 0:00:14] White is slightly better.} Be7 {[%emt 0:00:02]} 9. O-O {[%emt 0:00:02]} Nc6 {[%emt 0:00:01]} 10. a4 {[%emt 0:00:13] [#] 10.Qd2 is setting a new trend.} Na5 $146 {[%emt 0:00:23]} ({Predecessor:} 10... a5 11. Bd2 Ba6 12. Qc2 O-O 13. Bxc4 Bxb5 14. Bxb5 Nxd4 15. Nxd4 Qxd4 16. Rfe1 Nd5 {½-½ (45) Akesson,R (2427)-Sorensen,H (2383) Uppsala 2022}) 11. Be3 {[%emt 0:00:31]} Bb7 {[%emt 0:00:12]} 12. Na3 {[%emt 0:00:16]} (12. Qc2 {is more complex.} O-O 13. Nd2 Bb4 14. Ne4) 12... Bd5 {[%emt 0:00:41]} 13. Rc1 {[%emt 0:00:39]} (13. Nd2 $11) 13... Qd7 {[%emt 0:00:03]} 14. Nd2 {[%emt 0:00:22]} Bxa3 {[%emt 0:00:24]} 15. bxa3 {[%emt 0:00:05]} Nxa4 {[%emt 0:00:03]} (15... O-O $17) 16. Nxc4 $11 {[%emt 0:00:23]} Nxc4 {[%emt 0:00:50]} 17. Bxc4 {[%emt 0:00:02]} Bxc4 {[%emt 0:00:20]} 18. Rxc4 {[%emt 0:00:01]} Nb6 {[%emt 0:00:10]} 19. Qf3 {[%emt 0:00:08][%cal Of3b7]} O-O $36 {[%emt 0:00:09][%mdl 2048] Black fights for an advantage.} 20. Rc6 {[%emt 0:00:02]} Nd5 {[%emt 0:00:04]} 21. Rfc1 {[%emt 0:00:01]} Rab8 {[%emt 0:00:01][%cal Ba8b8,Bb8b6,Bb6b2][%mdl 32]} 22. Qd1 {[%emt 0:00:12]} Rb6 {[%emt 0:00:07]} 23. Qc2 {[%emt 0:00:31]} Rfb8 {[%emt 0:00:07]} 24. h3 {[%emt 0:00:02]} h6 25. a4 {[%emt 0:00:12]} Rb2 {[%emt 0:00:15]} 26. Qc5 {[%emt 0:00:08]} ({White should play} 26. Qe4) 26... Qd8 $17 {[%emt 0:00:22]} 27. Qxa7 {[%emt 0:00:12]} (27. Rxc7 $142 Nxc7 28. Qxc7) 27... Nxe3 {[%emt 0:00:01]} (27... Ra8 $19 {has better winning chances.} 28. Qc5 Nxe3 29. fxe3 Qg5) 28. fxe3 {[%emt 0:00:04]} Qg5 {[%emt 0:00:01][%csl Gb2][%cal Rg5g2]} 29. R6c2 {[%emt 0:00:34]} Qxe3+ 30. Kh2 (30. Kh1 $17 {only move.}) 30... Qf4+ {[%emt 0:00:30]} (30... R2b3 31. Qxc7 Qf4+ 32. Kh1 $15) (30... R8b7 $1 $19 {and Black stays clearly on top. ( -> ...Qf4+)} 31. Qc5 Rxc2 32. Qxc2 Qxd4) 31. g3 {[%emt 0:00:01] [#]} (31. Kh1 $17) 31... Qe3 {[%emt 0:00:25]} ({Not} 31... Qxc1 32. Qxb8+ Rxb8 33. Rxc1 $15) (31... Qe4 $1 $19 {is more deadly.} 32. Qc5 R8b3) 32. Qxc7 {[%emt 0:00:18]} R8b3 {[%emt 0:00:01] Inhibits d5. Black is more active.} ({Of course not} 32... Qxc1 $6 {[#]} 33. Qxb8+ $1 Rxb8 34. Rxc1 $11) 33. Qd8+ $2 {[%emt 0:00:08][%mdl 8192]} (33. Rg1 $17) 33... Kh7 {[%emt 0:00:01]} 34. Qh4 {[%emt 0:00:00]} Qxc1 {[%emt 0:00:07] Weighted Error Value: White=0.49/Black=0.30} 0-1

[Event "1st Kallai Gabor Memorial Blitz 2022"]
[Site "Budapest"]
[Date "2022.12.01"]
[Round "8.3"]
[White "Gaal, Zsoka"]
[Black "Ruck, Robert"]
[Result "0-1"]
[ECO "D78"]
[WhiteElo "2286"]
[BlackElo "2537"]
[Annotator "TA"]
[PlyCount "74"]
[EventDate "2022.12.01"]
[EventType "blitz"]
[EventCountry "HUN"]
[SourceTitle "playchess.com"]
[Source "ChessBase"]
[SourceQuality "1"]
[TimeControl "300+3"]

{[%evp 13,74,0,27,17,26,8,22,19,8,5,22,20,14,16,30,34,51,21,19,30,42,1,14,0,8,0,11,0,0,0,14,14,17,14,33,28,31,35,31,-260,-255,-268,-266,-307,-299,-315,-265,-346,-355,-367,-346,-345,-275,-615,-615,-649,-631,-639,-642,-5710,-4050,-29998,-29999]} 1. Nf3 {[%emt 0:00:04]} d5 {[%emt 0:00:04]} 2. g3 {[%emt 0:00:01]} g6 {[%emt 0:00:01]} 3. Bg2 {[%emt 0:00:02]} Bg7 {[%emt 0:00:01]} 4. d4 {[%emt 0:00:01]} Nf6 {[%emt 0:00:01]} 5. O-O {[%emt 0:00:03]} O-O {[%emt 0:00:02]} 6. c4 {[%emt 0:00:01]} c6 {[%emt 0:00:01]} 7. Qb3 {[%emt 0:00:01] 7.Nc3 is the recent fashion.} a5 {[%emt 0:00:01]} 8. cxd5 {[%emt 0:00:01] D78: Fianchetto Grünfeld: 6 0-0 c6.} a4 {[%emt 0:00:01]} 9. Qd1 {[%emt 0:00:01]} cxd5 {[%emt 0:00:02]} 10. Nc3 {[%emt 0:00:04] The position is equal.} Qa5 {[%emt 0:00:07]} 11. Bd2 {[%emt 0:00:04]} Qa6 {[%emt 0:00:13]} 12. Ne5 {[%emt 0:00:05]} Nc6 {[%emt 0:00:22]} 13. e3 {[%emt 0:00:08]} (13. Bxd5 Nxd4 14. Bg2 Rd8 $15) (13. Nxd5 Nxd5 14. Bxd5 Nxd4 $17) 13... e6 {[%emt 0:00:10] [#]} 14. f4 $146 ({Predecessor:} 14. b3 Nxe5 15. dxe5 Nd7 16. f4 axb3 17. axb3 Qxa1 18. Qxa1 Rxa1 19. Rxa1 Nc5 20. Ra3 {1-0 (47) Inarkiev,E (2663)-Triapishko,A (2502) Moscow 2019}) 14... Nd7 {[%emt 0:00:22]} 15. a3 {[%emt 0:00:45]} Ndxe5 {[%emt 0:00:07]} 16. fxe5 {[%emt 0:00:01]} Bd7 {[%emt 0:00:01]} 17. Na2 {[%emt 0:00:09]} f5 {[%emt 0:01:00]} 18. exf6 {[%emt 0:00:36]} Rxf6 {[%emt 0:00:08]} 19. Rxf6 {[%emt 0:00:11]} Bxf6 {[%emt 0:00:02][%cal Bg7f6,Bf6g5,Bg5e3,Be3d4,Bd4e5][%mdl 32]} 20. Nb4 {[%emt 0:00:01]} Nxb4 {[%emt 0:00:18]} 21. Bxb4 {[%emt 0:00:01]} Bg5 {[%emt 0:00:04]} 22. Qf3 {[%emt 0:00:26] [#] Threatens to win with Rf1.} Qd3 {[%emt 0:00:20]} 23. Re1 {[%emt 0:00:02]} Qf5 {[%emt 0:00:06]} 24. Qe2 {[%emt 0:00:06] And now Rf1 would win.} Qf6 {[%emt 0:00:26]} 25. Rf1 {[%emt 0:00:23]} Qg7 {[%emt 0:00:01]} 26. Qg4 $2 {[%emt 0:00:18][%mdl 8192] Now White is beyond hope.} (26. h4 $14 {stays ahead.} Be7 27. Bxe7 Qxe7 28. Rf2) 26... Bxe3+ $19 {[%emt 0:00:14]} 27. Kh1 {[%emt 0:00:01]} Bxd4 {[%emt 0:00:07]} ({But not} 27... Qxd4 28. Qf3 $18) 28. Qg5 {[%emt 0:01:16]} h6 {[%emt 0:00:12]} 29. Qf4 {[%emt 0:00:18]} Re8 {[%emt 0:00:38]} 30. h4 {[%emt 0:00:16]} Bc6 {[%emt 0:00:04]} (30... Bxb2 $2 {too greedy.} 31. Qg4) 31. h5 {[%emt 0:00:22]} g5 {[%emt 0:00:06]} (31... gxh5 $2 {perishes.} 32. Bc3 Bxc3 33. bxc3 $19) 32. Qd2 {[%emt 0:00:23]} Be5 {[%emt 0:00:09]} 33. Bh3 $2 {[%emt 0:00:08]} (33. Kh2) 33... Bxg3 {[%emt 0:00:40]} 34. Qd3 {[%emt 0:00:15]} d4+ {[%emt 0:00:07]} 35. Kg1 {[%emt 0:00:01]} Bf4 {[%emt 0:00:01] [#] Hoping for ...Be3+.} 36. Bc5 {[%emt 0:00:07]} Be3+ {[%emt 0:00:04]} 37. Kh2 {[%emt 0:00:02]} Qe5+ {[%emt 0:00:01] Weighted Error Value: White=0.77/Black=0.12 (very precise)} 0-1

[Event "1st Kallai Gabor Memorial Blitz 2022"]
[Site "Budapest"]
[Date "2022.12.01"]
[Round "8.4"]
[White "Troff, Kayden"]
[Black "Berkes, Ferenc"]
[Result "0-1"]
[ECO "D02"]
[WhiteElo "2483"]
[BlackElo "2643"]
[Annotator "TA"]
[PlyCount "128"]
[EventDate "2022.12.01"]
[EventType "blitz"]
[EventCountry "HUN"]
[SourceTitle "playchess.com"]
[Source "ChessBase"]
[SourceQuality "1"]
[TimeControl "300+3"]

{[%evp 9,128,10,12,8,23,5,4,-4,11,0,0,0,0,0,0,0,2,0,5,0,12,-18,0,-8,-11,-12,8,-21,7,8,56,0,0,15,8,2,22,0,0,0,0,0,7,6,45,43,42,29,15,23,4,-5,-6,-4,0,-22,0,0,0,0,0,0,0,0,0,-2,0,-8,-8,-8,-8,-8,-8,-8,-8,-8,8,8,8,8,8,8,8,0,0,0,0,0,0,0,0,0,0,-29963,-29964,-29970,-29971,-29971,-29972,-29978,-29979,0,0,-29980,-29981,-29981,-29981,-29981,-29982,-29982,-29983,-29985,-29986,-29986,-29987,-29987,-29988,-29988,-29989,-29989,-29990]} 1. d4 {[%emt 0:00:04]} d5 {[%emt 0:00:04]} 2. Nf3 {[%emt 0:00:02]} c6 {[%emt 0:00:02]} 3. Bf4 {[%emt 0:00:03]} Bf5 {[%emt 0:00:06]} 4. e3 {[%emt 0:00:02]} e6 {[%emt 0:00:02]} 5. Bd3 {[%emt 0:00:05]} Bxd3 {[%emt 0:00:04]} 6. Qxd3 {[%emt 0:00:04] D02: 1 d4 d5 2 Nf3 sidelines, including 2...Nf6 3 g3 and 2...Nf6 3 Bf4.} Bd6 {[%emt 0:00:08]} 7. Bg3 {[%emt 0:00:08]} Nf6 {[%emt 0:00:06]} 8. O-O {[%emt 0:00:09] The position is equal.} Ne4 {[%emt 0:00:02]} 9. c4 {[%emt 0:00:03]} Nxg3 {[%emt 0:00:02]} 10. hxg3 {[%emt 0:00:02]} Nd7 {[%emt 0:00:05] [#]} 11. Nc3 $146 {[%emt 0:00:02]} ({Predecessor:} 11. cxd5 cxd5 12. Nc3 a6 13. Rac1 Rc8 14. e4 dxe4 15. Nxe4 Be7 16. Qb3 b5 17. d5 exd5 18. Qxd5 {1-0 (42) Novikovas,A-Knafo,M Brno 1998}) 11... O-O {[%emt 0:00:05]} 12. e4 {[%emt 0:00:02]} dxc4 {[%emt 0:00:07]} 13. Qxc4 {[%emt 0:00:01]} e5 {[%emt 0:00:02]} 14. Rfd1 {[%emt 0:00:16]} Qe7 {[%emt 0:00:17]} 15. Rd2 {[%emt 0:00:16]} (15. d5 {simplifies} Rac8 16. Qe2 Rfd8 17. dxc6 bxc6 18. Rd2) 15... Nb6 {[%emt 0:02:03]} 16. Qb3 {[%emt 0:00:02]} exd4 {[%emt 0:00:06]} 17. Nxd4 {[%emt 0:00:01] aiming for Nf5.} Be5 {[%emt 0:00:16]} (17... Bc7 {is more complex.} 18. Nf5 Qf6 19. f4 Rfd8) 18. a4 {[%emt 0:00:46]} Rad8 {[%emt 0:00:04] Inhibits a5.} (18... Qc5 $5 {[%cal Re5d4]} 19. Rad1 Nc4 $11) 19. Rad1 $1 {[%emt 0:00:05]} Qf6 {[%emt 0:00:29]} (19... Bxd4 $11 20. Rxd4 Rxd4 21. Rxd4 Qg5) 20. Nf3 {[%emt 0:00:11] Rxd8 is the strong threat.} (20. Nce2 $5 {[%cal Ra4a5]}) 20... Rxd2 {[%emt 0:00:03]} 21. Rxd2 {[%emt 0:00:01]} Bxc3 {[%emt 0:00:02]} 22. bxc3 {[%emt 0:00:02]} Qe6 {[%emt 0:00:05] Against a5} 23. Qb4 {[%emt 0:00:49]} (23. Qxe6 {simplifies} fxe6 24. a5 Nc4 25. Ra2) 23... c5 {[%emt 0:00:58] Prevents a5.} ({Resist} 23... Nc4 24. Rd4 Ne5 25. Qxb7 $16) 24. Qxc5 {[%emt 0:00:02] Threatens to win with a5.} Nxa4 {[%emt 0:00:01]} 25. Qb4 {[%emt 0:00:22]} b5 {[%emt 0:00:06]} 26. e5 {[%emt 0:01:07]} h6 {[%emt 0:00:12]} 27. Qxb5 {[%emt 0:00:50]} Nxc3 {[%emt 0:00:01]} 28. Qd3 {[%emt 0:00:01]} (28. Qb4 $5 {[%cal Rb4c3]} Rc8 29. Qb7 $14) 28... Rc8 {[%emt 0:00:15]} 29. Rc2 {[%emt 0:00:17]} Qc4 {[%emt 0:00:03]} 30. Qxc4 {[%emt 0:00:08]} (30. Qf5 {feels hotter.} Rd8 31. Kh2 Qd3 32. g4) 30... Rxc4 $11 {[%emt 0:00:01][%mdl 4096] Endgame KRN-KRN} 31. Kf1 {[%emt 0:00:02]} Rc7 {[%emt 0:00:06]} 32. Nd4 {[%emt 0:00:06]} Nb5 {[%emt 0:00:13]} 33. Rxc7 {[%emt 0:00:11]} (33. Nxb5 $2 {is the wrong capture.} Rxc2 34. Nxa7 Rc7 $19) 33... Nxc7 {[%emt 0:00:01] KN-KN} 34. Ke2 {[%emt 0:00:02]} Kf8 {[%emt 0:00:06]} 35. Kd3 {[%emt 0:00:01]} Ke8 {[%emt 0:00:03]} 36. Nf5 {[%emt 0:00:03]} Ne6 {[%emt 0:00:02]} 37. Kc4 {[%emt 0:00:03]} Kd7 {[%emt 0:00:07]} 38. f4 {[%emt 0:00:04]} h5 {[%emt 0:00:02]} 39. Nd6 {[%emt 0:00:03]} f6 {[%emt 0:00:06]} 40. Kd5 {[%emt 0:00:08]} Nc7+ {[%emt 0:00:01]} 41. Ke4 {[%emt 0:00:02]} fxe5 {[%emt 0:00:02]} 42. fxe5 {[%emt 0:00:01]} a5 {[%emt 0:00:03]} 43. Nc4 {[%emt 0:00:01]} Ke6 {[%emt 0:00:10]} 44. Nxa5 {[%emt 0:00:02] next Nb3 is good for White.} Nd5 {[%emt 0:00:03]} 45. Nc6 {[%emt 0:00:07] White wants to mate with Nd4+.} Nc3+ {[%emt 0:00:00]} 46. Kf4 {[%emt 0:00:00]} Ne2+ {[%emt 0:00:02]} 47. Kf3 {[%emt 0:00:02]} Nc3 {[%emt 0:00:05]} 48. Kf4 {[%emt 0:00:10]} Ne2+ {[%emt 0:00:01]} 49. Kf3 {[%emt 0:00:07]} Nc3 {[%emt 0:00:01]} 50. Ke3 {[%emt 0:00:01]} Kd5 {[%emt 0:00:02]} 51. Kd3 $2 {[%emt 0:00:07][%mdl 8192] [#]} (51. Ne7+ $11 Kxe5 52. Kf3) 51... Kxc6 52. Kxc3 {K3P-KPP} Kd5 53. Kd3 Kxe5 {KPP-KPP} 54. Ke3 {[%emt 0:00:06] [#]} Kf5 $1 {[%emt 0:00:04]} 55. Kf3 {[%emt 0:00:01]} Kg5 {[%emt 0:00:01] ( -> ...g6)} (55... g6 $5 56. g4+ $8 hxg4+ 57. Ke3 g5 $11) 56. Ke3 $2 {[%emt 0:00:11][%mdl 8192]} (56. Kf2 $11 Kg4 57. Kg1 Kxg3 58. Kh1 g6 59. Kg1 g5 60. Kh1 Kf2 61. Kh2 g4 62. Kh1 h4 63. Kh2 h3 64. g3 Kf3 65. Kg1 Kxg3 66. Kf1 Kf3 67. Ke1 g3 68. Kd1 h2 69. Kd2 g2 70. Kd3 g1=Q 71. Kc3 Qc5+ 72. Kb2 h1=Q 73. Ka2 Qh2+ 74. Kb3 Qhc2#) 56... Kg4 {[%emt 0:00:02] Black mates.} 57. Kf2 {[%emt 0:00:00]} g6 {[%emt 0:00:02][%cal Bg7g6,Bg6g5,Bg5g4][%mdl 32]} 58. Kf1 {[%emt 0:00:02]} Kxg3 {[%emt 0:00:02] KPP-KP} 59. Kg1 {[%emt 0:00:00]} g5 {[%emt 0:00:12]} 60. Kh1 {[%emt 0:00:02]} Kf2 {[%emt 0:00:06]} 61. Kh2 {[%emt 0:00:02]} g4 {[%emt 0:00:04]} 62. Kh1 {[%emt 0:00:01]} h4 {[%emt 0:00:11][%cal Bh5h4,Bh4h3][%mdl 32]} 63. Kh2 {[%emt 0:00:02]} h3 {[%emt 0:00:09]} 64. g3 {[%emt 0:00:12]} Kf3 {[%emt 0:00:01] Weighted Error Value: White=0.31/Black=0.04 (flawless)} 0-1